fUSD/lending_fUSD_20251130
["ID","MTS","AMOUNT","RATE_DAILY","PERIOD"]
[395199663,1764538241190,-200.0,0.00016864,2]
[395199664,1764538241200,-200.0,0.00016864,2]
[395199665,1764538241210,-200.0,0.00016864,2]
[395199666,1764538241219,-7649.1746,0.00016872,2]
[395199667,1764538241229,-1000.0,0.00016872,2]
[395199668,1764538241239,-168.0,0.00016898,2]
[395199669,1764538241248,-2462.13085229,0.000169,2]
[395199670,1764538241259,-750.18742908,0.000169,2]
[395199671,1764538241269,-8947.85985562,0.000169,2]
[395199672,1764538241278,-9533.0,0.000169,2]
[395199673,1764538241288,-168.0,0.00016914,2]
[395199674,1764538241298,-238.92703366,0.00016933,2]
[395199675,1764538241308,-151.0,0.00016933,2]
[395199676,1764538241318,-168.0,0.00016947,2]
[395199677,1764538241328,-52625.0,0.00016959,2]
[395199678,1764538241338,-520.34,0.00016962,2]
[395199679,1764538241347,-500.0,0.00016971,2]
[395199680,1764538241356,-500.0,0.00016971,2]
[395199681,1764538241366,-152023.97098756,0.00016972,2]
[395199682,1764538241375,-172.14260256,0.00016973,2]
[395199683,1764538241384,-174.27937181,0.00016973,2]
[395199684,1764538241393,-166.65415748,0.00016973,2]
[395199685,1764538241403,-500.0,0.00016973,2]
[395199686,1764538241412,-500.0,0.00016973,2]
[395199687,1764538241421,-565.90233254,0.00016973,2]
[395199688,1764538241430,-500.0,0.00016973,2]
[395199689,1764538241439,-500.0,0.00016973,2]
[395199690,1764538241448,-500.0,0.00016973,2]
[395199691,1764538241457,-161.07388452,0.00016973,2]
[395199692,1764538241466,-500.0,0.00016973,2]
[395199693,1764538241475,-500.0,0.00016973,2]
[395199694,1764538241484,-157.2860755,0.00016973,2]
[395199695,1764538241493,-160.07187961,0.00016973,2]
[395199696,1764538241502,-500.0,0.00016973,2]
[395199697,1764538241511,-168.14188112,0.00016973,2]
[395199698,1764538241521,-162.44041448,0.00016973,2]
[395199699,1764538241530,-500.0,0.00016973,2]
[395199700,1764538241539,-295.05852426,0.00016973,2]
[395199701,1764538241548,-165.35460481,0.00016973,2]
[395199702,1764538241846,-500.0,0.00016973,2]
[395199703,1764538241856,-500.0,0.00016973,2]
[395199704,1764538241865,-500.0,0.00016973,2]
[395199705,1764538241874,-164.85180001,0.00016973,2]
[395199706,1764538241883,-500.0,0.00016973,2]
[395199707,1764538241892,-500.0,0.00016973,2]
[395199708,1764538241901,-500.0,0.00016973,2]
[395199709,1764538241910,-500.0,0.00016973,2]
[395199710,1764538241921,-500.0,0.00016973,2]
[395199711,1764538241931,-500.0,0.00016973,2]
[395199712,1764538241943,-534.42146095,0.00016973,2]
[395199713,1764538241952,-500.0,0.00016973,2]
[395199714,1764538241963,-500.0,0.00016973,2]
[395199715,1764538241974,-500.0,0.00016973,2]
[395199716,1764538241984,-500.0,0.00016973,2]
[395199717,1764538241995,-501.18621372,0.00016973,2]
[395199718,1764538242004,-498.99397056,0.00016973,2]
[395199719,1764538242013,-500.0,0.00016973,2]
[395199720,1764538242023,-179.01901015,0.00016973,2]
[395199721,1764538242033,-514.18188343,0.00016973,2]
[395199722,1764538242043,-500.0,0.00016983,2]
[395199723,1764538242053,-500.0,0.00016989,2]
[395199724,1764538242062,-500.0,0.00016989,2]
[395199725,1764538242071,-492.9693918,0.0001699,2]
[395199726,1764538242079,-492.9693918,0.0001699,2]
[395199727,1764538242089,-151.0,0.00016995,2]
[395199728,1764538242098,-500.0,0.00016997,2]
[395199729,1764538242113,-500.0,0.00016997,2]
[395199730,1764538242122,-500.0,0.00016997,2]
[395199731,1764538242131,-500.0,0.00016997,2]
[395199732,1764538242140,-151.0,0.00016997,2]
[395199733,1764538242151,-547.690488,0.00016998,2]
[395199734,1764538242160,-77217.4398771,0.00016998,2]
[395199735,1764538242169,-7307.2761162,0.00016998,2]
[395199736,1764538242181,-289905.2332741,0.00016998,2]
[395199737,1764538242192,-13507.0221553,0.00016998,2]
[395199738,1764538242202,-2788.4370697,0.00016998,2]
[395199739,1764538242212,-80977.1414076,0.00016998,2]
[395199740,1764538242221,-523.46773215,0.00016999,2]
[395199741,1764538242231,-500.0,0.00016999,2]
[395199742,1764538242240,-500.0,0.00016999,2]
[395199743,1764538242249,-500.0,0.00016999,2]
[395199744,1764538242258,-500.0,0.00016999,2]
[395199745,1764538242267,-500.0,0.00016999,2]
[395199746,1764538242277,-500.0,0.00016999,2]
[395199747,1764538242286,-500.0,0.00016999,2]
[395199748,1764538242295,-500.0,0.00016999,2]
[395199749,1764538242305,-500.0,0.00016999,2]
[395199750,1764538242315,-500.0,0.00016999,2]
[395199751,1764538242323,-500.0,0.00016999,2]
[395199752,1764538242332,-500.0,0.00016999,2]
[395199753,1764538242342,-300.0,0.00016999,2]
[395199754,1764538242351,-500.0,0.00016999,2]
[395199755,1764538242360,-500.0,0.00016999,2]
[395199756,1764538242370,-500.0,0.00016999,2]
[395199757,1764538242379,-500.0,0.00016999,2]
[395199758,1764538242389,-500.0,0.00016999,2]
[395199759,1764538242398,-500.0,0.00016999,2]
[395199760,1764538242408,-500.0,0.00016999,2]
[395199761,1764538242417,-500.0,0.00016999,2]
[395199762,1764538242425,-584.28639426,0.00016999,2]
[395199763,1764538242435,-519.79569884,0.00016999,2]
[395199764,1764538242444,-300.0,0.00016999,2]
[395199765,1764538242453,-300.0,0.00016999,2]
[395199766,1764538242463,-1194511.34052906,0.00017,2]
[395199773,1764538243638,-1729.9999,0.000159,2]
[395199774,1764538243650,-770.0001,0.000159,2]
[395199775,1764538243659,-43.00975261,0.000169,2]
[395199776,1764538243670,-124.50591393,0.000169,2]
[395199777,1764538243682,-862598.71678685,0.00017,2]
[395199778,1764538243691,-5931.49131877,0.00017,2]
[395199779,1764538243703,-967030.82645307,0.00017,2]
[395199800,1764538244019,-2000.0,0.00017,2]
[395199801,1764538244030,-2000.0,0.00017,2]
[395199802,1764538244039,-2000.0,0.00017,2]
[395199803,1764538244048,-2000.0,0.00017,2]
[395199804,1764538244058,-2000.0,0.00017,2]
[395199805,1764538244067,-2000.0,0.00017,2]
[395199806,1764538244076,-2000.0,0.00017,2]
[395199807,1764538244086,-2000.0,0.00017,2]
[395199808,1764538244095,-1425.646,0.00017,2]
[395199809,1764538244104,-1000.0,0.00017,2]
[395199810,1764538244118,-1000.0,0.00017,2]
[395199811,1764538244127,-1000.0,0.00017,2]
[395199812,1764538244136,-2000.0,0.00017,2]
[395199813,1764538244145,-200.0,0.00017,2]
[395199814,1764538244156,-250.0,0.00017,2]
[395199815,1764538244165,-74617.02504029,0.00017,2]
[395199816,1764538244174,-1661113.13181016,0.00017,2]
[395199817,1764538244224,-1149.00319259,0.00017,2]
[395199818,1764538244506,-478.83259887,0.00014898,2]
[395199819,1764538244515,-2363.07614402,0.00015122,2]
[395199820,1764538244524,-319.47248173,0.00016438,2]
[395199821,1764538244534,-248.36259518,0.000169,2]
[395199822,1764538244578,-280.58129542,0.000169,2]
[395199823,1764538244587,-288.10194703,0.00017,2]
[395199824,1764538244648,-45443.0,0.00017,2]
[395199825,1764538244695,-276.00947847,0.00017,2]
[395199826,1764538244707,-261.21240006,0.00017,2]
[395199830,1764538245878,-1512.91707148,0.00015344,2]
[395199831,1764538245939,-675.57091237,0.00015344,2]
[395199832,1764538246163,-174.58816017,0.00015344,2]
[395199833,1764538246173,-4287.86439983,0.00017,2]
[395199834,1764538246185,-104272.41546715,0.00017,2]
[395199835,1764538246200,-406.59937078,0.00017,2]
[395199836,1764538246213,-695.555,0.00017,2]
[395199848,1764539432707,-985.21312914,0.00013943,2]
[395199849,1764539432719,-867.20687086,0.00013943,2]
[395199850,1764539432728,-202.0,0.00013943,2]
[395199851,1764539432738,-195.0,0.00014174,2]
[395199852,1764539432747,-150.0,0.00014174,2]
[395199853,1764539432756,-195.0,0.000142,2]
[395199854,1764539432765,-250.0,0.00014217,2]
[395199855,1764539432774,-534.9,0.00014262,2]
[395199856,1764539432784,-179.28100155,0.00014407,2]
[395199857,1764539432793,-300.0,0.00014506,2]
[395199858,1764539432801,-300.0,0.00014506,2]
[395199859,1764539432810,-1200.0,0.00014506,2]
[395199860,1764539432820,-275.31414905,0.00014507,2]
[395199861,1764539432836,-6082.51585095,0.00014507,2]
[395199862,1764539432845,-151.0,0.00014521,2]
[395199863,1764539432854,-379.22605924,0.00014563,2]
[395199864,1764539432864,-215.34759937,0.00014563,2]
[395199865,1764539432873,-664851.01353372,0.00014564,2]
[395199866,1764539432884,-25088.07367248,0.00014564,2]
[395199867,1764539432895,-70060.9127938,0.00014564,2]
[395199868,1764539432904,-798.0,0.00014661,2]
[395199869,1764539432913,-150.0,0.00014663,2]
[395199870,1764539432927,-999.99,0.00014664,2]
[395199871,1764539432936,-9999.99,0.00014664,2]
[395199872,1764539432945,-150.99,0.00014664,2]
[395199873,1764539432955,-9999.99,0.00014664,2]
[395199874,1764539432966,-9999.99,0.00014664,2]
[395199875,1764539432975,-2379.03,0.00014664,2]
[395199876,1764539432983,-9999.99,0.00014664,2]
[395199877,1764539432994,-41954.71150139,0.00014664,2]
[395199878,1764539433005,-6230.65849861,0.00014664,2]
[395199879,1764539433015,-885.74,0.00014664,2]
[395199880,1764539433024,-1599.12,0.00014665,2]
[395199881,1764539433034,-200.0,0.00014683,2]
[395199882,1764539433043,-632.48,0.00014683,2]
[395199883,1764539433053,-235.2993,0.000147,2]
[395199884,1764539433062,-9433.0073,0.000147,2]
[395199885,1764539433071,-1000.0,0.000147,2]
[395199886,1764539433080,-1673.1847,0.000147,2]
[395199887,1764539433090,-15249.59172776,0.000147,2]
[395199888,1764539433099,-476.2313223,0.000147,2]
[395199889,1764539433108,-2354.6523,0.000147,2]
[395199890,1764539433118,-150.0,0.00014791,2]
[395199891,1764539433127,-150.0,0.00014791,2]
[395199892,1764539433136,-150.0,0.00014791,2]
[395199893,1764539433146,-150.0,0.00014791,2]
[395199894,1764539433155,-500.0,0.00014791,2]
[395199895,1764539433165,-500.0,0.00014791,2]
[395199896,1764539433175,-150.0,0.00014791,2]
[395199897,1764539433184,-500.0,0.00014791,2]
[395199898,1764539433193,-500.0,0.00014791,2]
[395199899,1764539433202,-200.0,0.00014791,2]
[395199900,1764539433212,-500.0,0.00014791,2]
[395199901,1764539433222,-151.0,0.00014791,2]
[395199902,1764539433231,-151.0,0.00014791,2]
[395199903,1764539433240,-151.0,0.00014791,2]
[395199904,1764539433249,-151.0,0.00014791,2]
[395199905,1764539433259,-151.0,0.00014791,2]
[395199906,1764539433269,-151.0,0.00014791,2]
[395199907,1764539433287,-151.0,0.00014791,2]
[395199908,1764539433298,-151.0,0.00014791,2]
[395199909,1764539433308,-151.0,0.00014791,2]
[395199910,1764539433322,-151.0,0.00014791,2]
[395199911,1764539433332,-151.0,0.00014791,2]
[395199912,1764539433342,-151.0,0.00014791,2]
[395199913,1764539433352,-151.0,0.00014791,2]
[395199914,1764539433362,-151.0,0.00014791,2]
[395199915,1764539433372,-151.0,0.00014791,2]
[395199916,1764539433381,-151.0,0.00014791,2]
[395199917,1764539433391,-151.0,0.00014791,2]
[395199918,1764539433401,-151.0,0.00014791,2]
[395199919,1764539433411,-151.0,0.00014791,2]
[395199920,1764539433420,-151.0,0.00014791,2]
[395199921,1764539433430,-151.0,0.00014791,2]
[395199922,1764539433440,-151.0,0.00014791,2]
[395199923,1764539433450,-151.0,0.00014791,2]
[395199924,1764539433459,-151.0,0.00014791,2]
[395199925,1764539433469,-151.0,0.00014791,2]
[395199926,1764539433479,-200.0,0.00014791,2]
[395199927,1764539433488,-151.0,0.00014791,2]
[395199928,1764539433497,-151.0,0.00014791,2]
[395199929,1764539433507,-151.0,0.00014791,2]
[395199930,1764539433516,-500.0,0.00014791,2]
[395199931,1764539433526,-151.0,0.00014791,2]
[395199932,1764539433535,-500.0,0.00014791,2]
[395199933,1764539433545,-151.0,0.00014791,2]
[395199934,1764539433555,-500.0,0.00014791,2]
[395199935,1764539433564,-151.0,0.00014791,2]
[395199936,1764539433574,-500.0,0.00014791,2]
[395199937,1764539433585,-165.25228523,0.00014791,2]
[395199938,1764539433595,-500.0,0.00014791,2]
[395199939,1764539433604,-500.0,0.00014791,2]
[395199940,1764539433614,-500.0,0.00014791,2]
[395199941,1764539433623,-500.0,0.00014791,2]
[395199942,1764539433634,-500.0,0.00014791,2]
[395199943,1764539433648,-500.0,0.00014791,2]
[395199944,1764539433658,-500.0,0.00014791,2]
[395199945,1764539433668,-500.0,0.00014791,2]
[395199946,1764539433678,-500.0,0.00014791,2]
[395199947,1764539433687,-500.0,0.00014791,2]
[395199948,1764539433697,-500.0,0.00014791,2]
[395199949,1764539433706,-500.0,0.00014791,2]
[395199950,1764539433716,-500.0,0.00014791,2]
[395199951,1764539433725,-500.0,0.00014791,2]
[395199952,1764539433735,-500.0,0.00014791,2]
[395199953,1764539433745,-200.0,0.00014791,2]
[395199954,1764539433754,-500.0,0.00014791,2]
[395199955,1764539433764,-500.0,0.00014791,2]
[395199956,1764539433774,-500.0,0.00014791,2]
[395199957,1764539433784,-500.0,0.00014791,2]
[395199958,1764539433794,-500.0,0.00014791,2]
[395199959,1764539433804,-500.0,0.00014791,2]
[395199960,1764539433814,-500.0,0.00014791,2]
[395199961,1764539433823,-500.0,0.00014799,2]
[395199962,1764539433832,-500.0,0.00014799,2]
[395199963,1764539433842,-500.0,0.00014799,2]
[395199964,1764539433852,-1570.635,0.00014799,2]
[395199965,1764539433862,-169.952,0.00014799,2]
[395199966,1764539433871,-500.0,0.00014799,2]
[395199967,1764539433881,-500.0,0.00014799,2]
[395199968,1764539433891,-500.0,0.00014799,2]
[395199969,1764539433901,-500.0,0.00014799,2]
[395199970,1764539433911,-500.0,0.00014799,2]
[395199971,1764539433925,-500.0,0.00014799,2]
[395199972,1764539433937,-500.0,0.00014799,2]
[395199973,1764539433947,-387.25737973,0.00014799,2]
[395199974,1764539433957,-500.0,0.00014799,2]
[395199975,1764539433967,-500.0,0.00014799,2]
[395199976,1764539433977,-500.0,0.00014799,2]
[395199977,1764539433987,-500.0,0.00014799,2]
[395199978,1764539433998,-500.0,0.00014799,2]
[395199979,1764539434012,-500.0,0.00014799,2]
[395199980,1764539434022,-500.0,0.00014799,2]
[395199981,1764539434032,-500.0,0.00014799,2]
[395199982,1764539434042,-500.0,0.00014799,2]
[395199983,1764539434053,-500.0,0.00014799,2]
[395199984,1764539434063,-500.0,0.00014799,2]
[395199985,1764539434073,-500.0,0.00014799,2]
[395199986,1764539434082,-500.0,0.00014799,2]
[395199987,1764539434092,-600.0,0.000148,2]
[395199988,1764539434101,-2751.0,0.0001481,2]
[395199989,1764539434111,-150.0,0.00014928,2]
[395199990,1764539434121,-160.56075218,0.00014928,2]
[395199991,1764539434131,-150.0,0.00014928,2]
[395199992,1764539434141,-500.0,0.00014928,2]
[395199993,1764539434151,-500.0,0.00014928,2]
[395199994,1764539434161,-500.0,0.00014928,2]
[395199995,1764539434171,-500.0,0.00014928,2]
[395199996,1764539434181,-885.74,0.00014938,2]
[395199997,1764539434191,-15249.59172773,0.00014944,2]
[395199998,1764539434201,-500.0,0.00014999,2]
[395199999,1764539434210,-476.23132223,0.00015014,2]
[395200000,1764539434220,-150.0,0.00015065,2]
[395200001,1764539434230,-245.9790849,0.00015065,2]
[395200002,1764539434240,-253.81467987,0.00015065,2]
[395200003,1764539434250,-500.0,0.00015065,2]
[395200004,1764539434260,-250.0,0.00015065,2]
[395200005,1764539434271,-500.0,0.00015065,2]
[395200006,1764539434280,-151.0,0.00015069,2]
[395200007,1764539434290,-600.0,0.00015074,2]
[395200008,1764539434300,-15249.59172773,0.00015189,2]
[395200009,1764539434310,-150.0,0.00015202,2]
[395200010,1764539434319,-500.0,0.00015202,2]
[395200011,1764539434329,-500.0,0.00015202,2]
[395200012,1764539434339,-885.74,0.00015212,2]
[395200013,1764539434843,-150.0,0.00015288,2]
[395200014,1764539434854,-151.18990126,0.00015288,2]
[395200015,1764539434864,-150.0,0.00015288,2]
[395200016,1764539434874,-150.0,0.00015288,2]
[395200017,1764539434883,-150.0,0.00015288,2]
[395200018,1764539434893,-150.0,0.00015288,2]
[395200019,1764539434901,-150.0,0.00015288,2]
[395200020,1764539434911,-150.0,0.00015288,2]
[395200021,1764539434923,-179.4240385,0.00015288,2]
[395200022,1764539434933,-150.0,0.00015288,2]
[395200023,1764539434942,-150.0,0.00015288,2]
[395200024,1764539434951,-150.0,0.00015288,2]
[395200025,1764539434962,-150.0,0.00015288,2]
[395200026,1764539434971,-150.0,0.00015288,2]
[395200027,1764539434981,-150.0,0.00015288,2]
[395200028,1764539434990,-150.0,0.00015288,2]
[395200029,1764539435000,-190.75662728,0.00015288,2]
[395200030,1764539435010,-179.4240385,0.00015305,2]
[395200031,1764539435019,-150.0,0.00015313,2]
[395200032,1764539435029,-179.4240385,0.00015322,2]
[395200033,1764539435040,-150.0,0.00015322,2]
[395200034,1764539435049,-476.23132223,0.00015329,2]
[395200035,1764539435058,-150.0,0.0001533,2]
[395200036,1764539435067,-150.0,0.00015331,2]
[395200037,1764539435077,-150.0,0.00015336,2]
[395200038,1764539435086,-195.0,0.00015337,2]
[395200039,1764539435095,-250.0,0.00015337,2]
[395200040,1764539435104,-150.0,0.00015338,2]
[395200041,1764539435114,-150.0,0.00015339,2]
[395200042,1764539435124,-500.0,0.00015339,2]
[395200043,1764539435135,-500.0,0.00015339,2]
[395200044,1764539435144,-500.0,0.00015339,2]
[395200045,1764539435153,-200.0,0.00015339,2]
[395200046,1764539435163,-200.0,0.00015339,2]
[395200047,1764539435172,-179.4240385,0.00015339,2]
[395200048,1764539435182,-150.0,0.00015341,2]
[395200049,1764539435191,-600.0,0.00015348,2]
[395200050,1764539435200,-179.4240385,0.00015356,2]
[395200051,1764539435210,-150.0,0.00015357,2]
[395200052,1764539435219,-150.0,0.00015364,2]
[395200053,1764539435228,-150.0,0.00015365,2]
[395200054,1764539435237,-150.0,0.00015373,2]
[395200055,1764539435246,-179.4240385,0.00015373,2]
[395200056,1764539435256,-150.0,0.00015375,2]
[395200057,1764539435265,-150.0,0.00015385,2]
[395200058,1764539435275,-150.0,0.00015388,2]
[395200059,1764539435284,-150.0,0.00015389,2]
[395200060,1764539435293,-179.4240385,0.00015391,2]
[395200061,1764539435302,-150.0,0.00015392,2]
[395200062,1764539435311,-150.0,0.00015394,2]
[395200063,1764539435321,-179.4240385,0.00015408,2]
[395200064,1764539435330,-150.0,0.00015414,2]
[395200065,1764539435340,-150.0,0.00015415,2]
[395200066,1764539435349,-150.0,0.00015418,2]
[395200067,1764539435359,-150.0,0.00015418,2]
[395200068,1764539435368,-179.4240385,0.00015425,2]
[395200069,1764539435378,-150.0,0.00015426,2]
[395200070,1764539435387,-150.0,0.00015433,2]
[395200071,1764539435397,-15249.59172773,0.00015433,2]
[395200072,1764539435406,-150.0,0.0001544,2]
[395200073,1764539435416,-150.0,0.00015442,2]
[395200074,1764539435425,-179.4240385,0.00015442,2]
[395200075,1764539435434,-150.0,0.00015442,2]
[395200076,1764539435444,-150.0,0.00015447,2]
[395200077,1764539435453,-150.0,0.00015458,2]
[395200078,1764539435462,-179.4240385,0.00015459,2]
[395200079,1764539435472,-150.0,0.00015461,2]
[395200080,1764539435481,-150.0,0.00015462,2]
[395200081,1764539435491,-150.0,0.00015465,2]
[395200082,1764539435500,-200.0,0.00015476,2]
[395200083,1764539435509,-500.0,0.00015476,2]
[395200084,1764539435519,-500.0,0.00015476,2]
[395200085,1764539435528,-179.4240385,0.00015476,2]
[395200086,1764539435538,-150.0,0.00015482,2]
[395200087,1764539435547,-885.74,0.00015486,2]
[395200088,1764539435557,-150.0,0.00015488,2]
[395200089,1764539435566,-150.0,0.0001549,2]
[395200090,1764539435575,-179.4240385,0.00015494,2]
[395200091,1764539435585,-150.0,0.00015496,2]
[395200092,1764539435594,-150.0,0.000155,2]
[395200093,1764539435604,-150.0,0.000155,2]
[395200094,1764539435614,-150.0,0.00015505,2]
[395200095,1764539435623,-179.4240385,0.00015511,2]
[395200096,1764539435635,-150.0,0.00015516,2]
[395200097,1764539435646,-150.0,0.00015519,2]
[395200098,1764539435655,-179.4240385,0.00015528,2]
[395200099,1764539435667,-150.0,0.0001553,2]
[395200100,1764539435678,-150.0,0.0001553,2]
[395200101,1764539435687,-150.0,0.00015541,2]
[395200102,1764539435696,-150.0,0.00015542,2]
[395200103,1764539435706,-179.4240385,0.00015545,2]
[395200104,1764539435715,-150.0,0.00015549,2]
[395200105,1764539435724,-150.0,0.00015549,2]
[395200106,1764539435734,-150.0,0.00015553,2]
[395200107,1764539435743,-179.4240385,0.00015562,2]
[395200108,1764539435752,-150.0,0.00015565,2]
[395200109,1764539435761,-150.0,0.00015567,2]
[395200110,1764539435770,-150.0,0.00015579,2]
[395200111,1764539435780,-179.4240385,0.00015579,2]
[395200112,1764539435789,-150.0,0.00015585,2]
[395200113,1764539435798,-150.0,0.00015587,2]
[395200114,1764539435807,-195.0,0.00015591,2]
[395200115,1764539435817,-195.0,0.00015591,2]
[395200116,1764539435826,-150.0,0.00015592,2]
[395200117,1764539435835,-150.0,0.00015593,2]
[395200118,1764539435844,-200.0,0.00015595,2]
[395200119,1764539435854,-150.0,0.00015597,2]
[395200120,1764539435863,-179.4240385,0.00015597,2]
[395200121,1764539435872,-150.0,0.00015597,2]
[395200122,1764539435881,-150.0,0.000156,2]
[395200123,1764539435891,-150.0,0.00015606,2]
[395200124,1764539435900,-500.0,0.00015613,2]
[395200125,1764539435909,-179.4240385,0.00015614,2]
[395200126,1764539435920,-151.0,0.00015617,2]
[395200127,1764539435931,-150.0,0.00015617,2]
[395200128,1764539435940,-600.0,0.00015622,2]
[395200129,1764539435950,-150.0,0.00015627,2]
[395200130,1764539435959,-150.0,0.00015627,2]
[395200131,1764539435970,-150.0,0.00015627,2]
[395200132,1764539435979,-179.4240385,0.00015631,2]
[395200133,1764539435988,-150.0,0.00015634,2]
[395200134,1764539435997,-150.0,0.00015636,2]
[395200135,1764539436006,-150.0,0.00015643,2]
[395200136,1764539436015,-476.23132223,0.00015643,2]
[395200137,1764539436024,-179.4240385,0.00015648,2]
[395200138,1764539436032,-150.0,0.00015659,2]
[395200139,1764539436043,-179.4240385,0.00015665,2]
[395200140,1764539436052,-150.0,0.00015668,2]
[395200141,1764539436061,-150.0,0.00015669,2]
[395200142,1764539436069,-150.0,0.0001567,2]
[395200143,1764539436078,-150.0,0.00015674,2]
[395200144,1764539436087,-150.0,0.00015676,2]
[395200145,1764539436096,-10223.68572862,0.00015678,2]
[395200146,1764539436105,-15249.59172773,0.00015678,2]
[395200147,1764539436114,-150.0,0.0001568,2]
[395200148,1764539436123,-150.0,0.0001568,2]
[395200149,1764539436131,-179.4240385,0.00015682,2]
[395200150,1764539436140,-150.0,0.00015687,2]
[395200151,1764539436149,-150.0,0.00015693,2]
[395200152,1764539436158,-179.4240385,0.00015699,2]
[395200153,1764539436167,-150.0,0.00015704,2]
[395200154,1764539436176,-150.0,0.00015712,2]
[395200155,1764539436185,-150.0,0.00015712,2]
[395200156,1764539436194,-150.0,0.00015712,2]
[395200157,1764539436202,-179.4240385,0.00015717,2]
[395200158,1764539436211,-150.0,0.00015719,2]
[395200159,1764539436220,-150.0,0.00015723,2]
[395200160,1764539436229,-150.0,0.00015724,2]
[395200161,1764539436238,-179.4240385,0.00015734,2]
[395200162,1764539436246,-150.0,0.00015738,2]
[395200163,1764539436255,-150.0,0.00015744,2]
[395200164,1764539436264,-500.0,0.0001575,2]
[395200165,1764539436273,-150.0,0.00015751,2]
[395200166,1764539436282,-179.4240385,0.00015751,2]
[395200167,1764539436291,-150.0,0.00015751,2]
[395200168,1764539436300,-150.0,0.00015755,2]
[395200169,1764539436309,-885.74,0.0001576,2]
[395200170,1764539436318,-150.0,0.00015765,2]
[395200171,1764539436326,-150.0,0.00015767,2]
[395200172,1764539436335,-179.4240385,0.00015768,2]
[395200173,1764539436344,-150.0,0.00015769,2]
[395200174,1764539436353,-150.0,0.00015773,2]
[395200175,1764539436362,-150.0,0.00015773,2]
[395200176,1764539436371,-179.4240385,0.00015785,2]
[395200177,1764539436379,-698.31665151,0.00015786,2]
[395200178,1764539436388,-150.0,0.00015787,2]
[395200179,1764539436397,-500.0,0.00015788,2]
[395200180,1764539436406,-500.0,0.00015788,2]
[395200181,1764539436415,-500.0,0.00015788,2]
[395200182,1764539436424,-500.0,0.00015788,2]
[395200183,1764539436433,-500.0,0.00015788,2]
[395200184,1764539436442,-255.0,0.00015792,2]
[395200185,1764539436450,-150.0,0.00015795,2]
[395200186,1764539436459,-150.0,0.00015797,2]
[395200187,1764539436468,-179.4240385,0.00015802,2]
[395200188,1764539436477,-150.0,0.00015808,2]
[395200189,1764539436487,-150.0,0.0001581,2]
[395200190,1764539436497,-150.0,0.0001581,2]
[395200191,1764539436506,-150.0,0.00015818,2]
[395200192,1764539436516,-179.4240385,0.0001582,2]
[395200193,1764539436525,-150.0,0.0001582,2]
[395200194,1764539436535,-150.0,0.00015822,2]
[395200195,1764539436544,-331.3,0.00015828,2]
[395200196,1764539436554,-150.0,0.00015828,2]
[395200197,1764539436564,-179.4240385,0.00015837,2]
[395200198,1764539436574,-150.0,0.0001584,2]
[395200199,1764539436583,-150.0,0.00015842,2]
[395200200,1764539436592,-150.0,0.00015845,2]
[395200201,1764539436602,-150.0,0.00015854,2]
[395200202,1764539436611,-150.0,0.00015854,2]